Cogmind - Beta 17 @@@ ROGUE MODE // 2026.08.16 @ 22:59:15 Player: Clog Result: Destroyed by YI-UF0 with YI-UF0's Doublenader Performance ------------- Evolutions (0) 0 Regions Visited (2) 400 Robots Destroyed (25) 125 Value Destroyed (488) 488 Prototype IDs (0) 0 Alien Tech Used (0) 0 Bonus (-36) -36 TOTAL SCORE: 977 Bonus ------- Friendly Fire -36 Cogmind --------- Core Integrity 0/250 Matter 295/300 Energy 125/125 System Corruption 8% Temperature Cool (0) Movement Core (750) Ox14 Location -10/Mines Parts ------- > --- POWER (1) -------- Light Ion Engine > --- PROPULSION (2) --- (None) > --- UTILITY (2) ------ High-capacity Storage Unit Terrain Scanner > --- WEAPON (2) ------- (None) > --- INVENTORY (20) --- Ion Engine Light Treads Light Treads Improved Heat Sink Small Storage Unit Visual Processing Unit Terrain Scanner Terrain Scanner Light Assault Rifle Grenade Launcher Peak State ------------ > --- POWER ------------ Light Ion Engine > --- PROPULSION ------- Light Treads Light Treads > --- UTILITY ---------- Small Storage Unit Seismic Detector > --- WEAPON ----------- Assault Rifle Assault Rifle > --- INVENTORY -------- Light Ion Engine Light Treads Light Treads Improved Heat Sink High-capacity Storage Unit Visual Processing Unit Light Assault Rifle [Rating: 8] Favorites ----------- Power Light Ion Engine Engine Light Ion Engine Propulsion Light Treads Treads Light Treads Utility Seismic Detector Device Seismic Detector Storage Small Storage Unit Weapon Assault Rifle Ballistic Gun Assault Rifle Build | -11 -10 -10 ------- Run | Yrd Mat Min Slots Evolved . | . . . Power . | . . . Propulsion . | . . . Utility . | . . . Weapon . | . . . Parts Attached 10 | 6 3 1 Power 2 | 1 1 . Engine 2 | 1 1 . Core . | . . . Reactor . | . . . Propulsion 2 | 2 . . Treads 2 | 2 . . Leg . | . . . Wheel . | . . . Hover . | . . . Flight . | . . . Utility 4 | 1 2 1 Device 2 | . 1 1 Storage 2 | 1 1 . Processor . | . . . Hackware . | . . . Protection . | . . . Artifact . | . . . Weapon 2 | 2 . . Energy Gun . | . . . Energy Cannon . | . . . Ballistic Gun 2 | 2 . . Ballistic Cannon . | . . . Launcher . | . . . Special Weapon . | . . . Impact Weapon . | . . . Slashing Weapon . | . . . Piercing Weapon . | . . . Special Melee Weapon . | . . . Unidentified Prototypes . | . . . Parts Lost 6 | . 2 4 Power 1 | . 1 . Propulsion 2 | . . 2 Utility 1 | . 1 . Weapon 2 | . . 2 Highest Loss Streak 4 | . 1 4 To Critical Strikes . | . . . Average Backups 6 | 2 6 9 Power . | . 1 1 Propulsion . | . . 2 Utility 3 | . 3 5 Weapon . | . 1 1 Tool/Special . | . . . Unused Backups 8 | . . 8 Power 1 | . . 1 Propulsion 2 | . . 2 Utility 4 | . . 4 Weapon 1 | . . 1 Tool/Special . | . . . Average Slot Usage (%) 97 | . 97 90 Engine 13 | . 13 14 Treads 28 | . 28 28 Device 11 | . 12 4 Storage 14 | . 14 14 Ballistic Gun 27 | . 27 28 Peak Build Rating 8 | 6 8 8 Average Rating 7 | 4 7 7 On Entrance 4 | . 6 7 Avg Prop Armor Cover (%) . | . . . Naked Turns . | . . . Heaviest Build 48 | 12 48 48 Greatest Support 40 | 40 40 40 Greatest Overweight (x) 1 | . 1 1 Average Overweight (x) . | . . 1 Largest Inventory Capacity 20 | 8 20 20 Average Capacity 11 | 7 10 20 Most Carried 11 | 5 11 10 Average Carried 6 | 2 6 9 Final Capacity 20 | 8 20 20 Final Carried 10 | 3 10 10 Class Distribution -------------------- 100% | Mutant Dominant Class ---------------- Mutant | -10/Materials Mutant | -10/Mines Resources | -11 -10 -10 ----------- Run | Yrd Mat Min Matter Collected 777 | 284 493 . Remotely . | . . . Salvage Created 715 | 104 611 . Parts 53 | 4 49 . Haulers Intercepted 1 | . 1 . Recyclers Shooed 1 | 1 . . Parts Field Recycled . | . . . Retrieved Matter . | . . . Parts Self-Destructed . | . . . Prevented . | . . . Parts Restored . | . . . Kills | -11 -10 -10 ------- Run | Yrd Mat Min Combat Hostiles Destroyed 15 | . 15 . Guns 15 | . 15 . Classes Destroyed 9 | 2 7 . Worker 2 | . 2 . Builder 1 | . 1 . Tunneler 1 | 1 . . Hauler 1 | . 1 . Recycler 1 | 1 . . Operator 1 | . 1 . Watcher 3 | . 3 . Swarmer 6 | . 6 . Grunt 9 | . 9 . Best Kill Streak 6 | 2 6 . Combat Bots Only 6 | . 6 . Max Kills in Single Turn 1 | 1 1 . Gunslinging . | . . . Exploded . | . . . Melee . | . . . Uniques/NPCs Destroyed . | . . . Combat | -11 -10 -10 -------- Run | Yrd Mat Min Hostile Shots Fired 115 | . 107 8 Missed 37 | . 36 1 Hits 78 | . 71 7 Projectile 78 | . 71 7 AOE 7 | . . 7 Critical Strikes 4 | . 4 . Damage Taken 1029 | . 768 261 Core 250 | . 132 118 Absorbed by Shields . | . . . Regen/Repaired (Parts) 154 | . 154 . Core Remaining (%) 100 | 100 . . Volleys Fired 82 | 4 75 3 Largest 2 | 2 2 2 Hottest 40 | 40 40 40 Shots Fired 163 | 8 150 5 Gun 163 | 8 150 5 Cannon . | . . . Launcher . | . . . Special . | . . . Kinetic 163 | 8 150 5 Thermal . | . . . Explosive . | . . . Electromagnetic . | . . . Robot Hit Streak 8 | 4 8 4 Robot Miss Streak 7 | 1 7 1 Penetration Max . | . . . Secondary Targets 2 | . 2 . Max Gunslinging Chain 1 | . 1 . Shots Hit Robots 96 | 7 85 4 Core Hits 41 | 3 37 1 Critical Kills . | . . . Critical Parts Destroyed . | . . . Critical Strikes . | . . . Melee Attacks . | . . . Impact . | . . . Slashing . | . . . Piercing . | . . . Sneak Attacks . | . . . Combat Hostiles . | . . . Follow-up Attacks . | . . . Damage Inflicted 1220 | 78 1095 47 Guns 1208 | 78 1083 47 Cannons . | . . . Explosions . | . . . Melee . | . . . Ramming 12 | . 12 . Kinetic 1208 | 78 1083 47 Thermal . | . . . Explosive . | . . . Electromagnetic . | . . . Impact . | . . . Slashing . | . . . Piercing . | . . . Highest Corruption 8 | . 8 8 Average Corruption 6 | . 6 8 Corruption Purged . | . . . Corruption Blocked . | . . . Effects 11 | . 9 2 Message Errors 7 | . 5 2 Matter Fused 1 | . 1 . Heat Flow Errors 1 | . 1 . Energy Discharges 1 | . 1 . Data Loss (minor) 1 | . 1 . Overload Shots . | . . . Overflow Damage . | . . . Projectiles . | . . . Explosions . | . . . Melee . | . . . Knockbacks . | . . . Impact . | . . . Kinetic . | . . . Secondary . | . . . Self-Inflicted Damage . | . . . Shots . | . . . Rammed 2 | . 2 . Targets Rammed 4 | . 4 . Kicked . | . . . Crushed 2 | . 2 . Highest Temperature 221 | . 221 . Average Temperature 55 | . 55 . Received Heat Transfer 342 | . 342 . Siege Activations . | . . . Martial Activations . | . . . Shielding Activations . | . . . Robots Disrupted . | . . . Combat Hostiles . | . . . Robots Corrupted . | . . . Combat Hostiles . | . . . Parts Fried . | . . . Impact Corruptions . | . . . Robots Melted . | . . . Combat Hostiles . | . . . Parts Melted . | . . . Heat Transferred . | . . . Parts Sabotaged . | . . . Parts Stolen . | . . . Parts Stripped . | . . . Power Chain Reactions . | . . . Alert | -11 -10 -10 ------- Run | Yrd Mat Min Maximum Alert Level . | . . . Low Security (%) 100 | 100 100 100 Level 1 . | . . . Level 2 . | . . . Level 3 . | . . . Level 4 . | . . . Level 5 . | . . . High Security . | . . . Max Security . | . . . Peak Influence 135 | 5 135 . Initial . | . . . Average 32 | . 36 . Influence Increases 456 | 10 446 . Destroy 0b10 Robot/C 300 | . 300 . Destroy 0b10 Robot/NC 50 | 10 40 . Destroy Leader 68 | . 68 . Successful Hack 8 | . 8 . Disable Machine 15 | . 15 . Lose Combat Pursuer 15 | . 15 . Influence Decreases 456 | 10 444 2 Entered New Map 2 | . . 2 Time Decay 444 | 10 434 . Lost Part 10 | . 10 . Squads Dispatched 4 | . 4 . Investigation 1 | . 1 . Extermination . | . . . Reinforcement 3 | . 3 . Assault . | . . . Garrison . | . . . Intercept . | . . . Searches Triggered . | . . . Construction Impeded . | . . . Haulers Reinforced . | . . . Active Scanning Responses . | . . . Cargo Convoy Interrupts . | . . . Stealth | -11 -10 -10 --------- Run | Yrd Mat Min Distress Signals 2 | . 2 . Communications Jammed . | . . . Distress Signals . | . . . Times Spotted 31 | . 30 1 Peak Tracking Total 4 | . 4 1 Tactical Retreats 1 | . 1 . Traps | -11 -10 -10 ------- Run | Yrd Mat Min Traps Triggered 5 | . 5 . Indirectly . | . . . Trap Hack Attempts . | . . . Triggered . | . . . Disarmed . | . . . Reprogrammed . | . . . Reused . | . . . Traps Extracted . | . . . Installed . | . . . Triggered . | . . . Machines | -11 -10 -10 ---------- Run | Yrd Mat Min Machines Disabled 1 | . 1 . Max in Single Turn 1 | . 1 . Machines Repaired . | . . . Machines Dismantled . | . . . Machines Sabotaged . | . . . Overloaded Fab Kills . | . . . Hacking | -11 -10 -10 --------- Run | Yrd Mat Min Machines Accessed 3 | . 3 . Terminals 2 | . 2 . Fabricators . | . . . Repair Stations 1 | . 1 . Recycling Units . | . . . Scanalyzers . | . . . Garrison Access . | . . . Total Hacks 9 | . 9 . Successful 5 | . 5 . Failed 4 | . 4 . Catastrophic 1 | . 1 . Database Lockouts . | . . . Manual 5 | . 5 . Terminals 5 | . 5 . Fabricators . | . . . Repair Stations 4 | . 4 . Recycling Units . | . . . Scanalyzers . | . . . Garrison Access . | . . . Terminal Hacks 1 | . 1 . Zone Layout 1 | . 1 . Fabricator Hacks . | . . . Repair Station Hacks 4 | . 4 . Scan Component 2 | . 2 . Repair 2 | . 2 . Recycling Unit Hacks . | . . . Scanalyzer . | . . . Garrison Access Hacks . | . . . Unauthorized Hacks . | . . . Terminals . | . . . Fabricators . | . . . Repair Stations . | . . . Recycling Units . | . . . Scanalyzers . | . . . Garrison Access . | . . . Data Cores Recovered . | . . . Used . | . . . Hacking Detections 3 | . 3 . Full Trace Events . | . . . Feedback Events . | . . . Feedback Blocked . | . . . Robot Schematics Acquired . | . . . Robots Built . | . . . Authchips . | . . . Time . | . . . Total Robot Build Rating . | . . . Part Schematics Acquired . | . . . Parts Built . | . . . Authchips . | . . . Time . | . . . Total Part Build Rating . | . . . Part Studies Acquired . | . . . Parts Repaired 2 | . 2 . Time 52 | . 52 . Parts Recycled . | . . . Recycled Matter . | . . . Retrieved Matter . | . . . Retrieved Components . | . . . Parts Scanalyzed . | . . . Part Schematics Acquired . | . . . Parts Damaged . | . . . Bothacking | -11 -10 -10 ------------ Run | Yrd Mat Min Used RIF Installer . | . . . Robots Hacked . | . . . Non-combat . | . . . Combat . | . . . Robot Hacks Applied . | . . . Relay Couplers Released . | . . . Fabnet Peak Effective % . | . . . Robots Rewired . | . . . Allies Hacked . | . . . Hacks Repelled . | . . . Allies | -11 -10 -10 -------- Run | Yrd Mat Min Total Allies . | . . . Largest Group . | . . . Highest-Rated Group . | . . . Highest-Rated Ally . | . . . Total Orders . | . . . Ally Attacks . | . . . Total Damage . | . . . Kills . | . . . Allies Corrupted . | . . . Allies Melted . | . . . Intel | -11 -10 -10 ------- Run | Yrd Mat Min Active Infowar (turns) 1258 | . 1221 37 Terrain 37 | . . 37 Seismic 1221 | . 1221 . Robot Analysis Total . | . . . Derelict Logs Recovered . | . . . Drone Launches . | . . . Drone Recoveries . | . . . Exploration | -11 -10 -10 ------------- Run | Yrd Mat Min Turns Passed 1518 | 77 1360 81 Spaces Moved 670 | 39 601 30 Core 10 | 10 . . Treads 660 | 29 601 30 Legs . | . . . Wheels . | . . . Hover . | . . . Flight . | . . . Fastest Speed 50 | 50 160 240 Average Speed 175 | 131 175 240 Slowest Speed 240 | 160 240 240 Overloaded Moves . | . . . Propulsion Burnouts . | . . . Robots Hopped . | . . . Potential Cave-ins . | . . . Cave-ins Triggered . | . . . Exploration Rate (%) 30 | 4 74 12 Regions Visited 2 Branch Regions 1 Pre-discovered Areas . | . . . Known Exits Taken . | . . . Unknown Exits Taken 2 | 1 1 . Scrap Searched . | . . . Spaces Dug . | . . . Terrain Destroyed . | . . . Melee . | . . . Projectile . | . . . AOE . | . . . Terrain Rammed . | . . . Walls Destroyed . | . . . Machines Disabled . | . . . Actions | -11 -10 -10 --------- Run | Yrd Mat Min Total 849 | 57 757 35 Wait 62 | . 62 . Move 668 | 38 600 30 Hop . | . . . Pick Up 21 | 9 11 1 Fast Attach . | . . . Attach 11 | 6 4 1 Detach . | . . . Swap 1 | . 1 . Drop . | . . . Fire 82 | 4 75 3 Melee . | . . . Ram . | . . . Kick . | . . . Crush 4 | . 4 . Escape Stasis . | . . . Rewire . | . . . Trap . | . . . Miscellaneous . | . . . Route ------- -11/Scrapyard -10/Materials (discovered 3 exits: [*Mat x2] / [*Min]) -10/Mines History --------- Turn | Location | Event 6 | -11/Scrapyard | Discovered new exit (range 15) 78 | -11/Scrapyard | Entered Materials 301 | -10/Materials | Build established: Mutant 330 | -10/Materials | Discovered new exit (range 15) 447 | -10/Materials | Discovered new exit (range 5) 506 | -10/Materials | Repaired Assault Rifle 534 | -10/Materials | Repaired Assault Rifle 717 | -10/Materials | Discovered new exit (range 14) 1234 | -10/Materials | Core integrity fell below 50% 1438 | -10/Materials | Entered Mines 1509 | -10/Mines | YI-UF0 nonchalantly dropped a Grenade Launcher on the ground 1519 | -10/Mines | Destroyed by YI-UF0 with YI-UF0's Doublenader Last Messages --------------- 01409_ Triggered Alarm Trap. 01409_ An alarm sounds. 01409_ ALERT: Alarm triggered, dispatching investigation squad. 01412_ U-05 Engineer lays Concrete. 01425_ Seismic Detector destroyed. LOCATION=UNKNOWN GOAL=ESCAPE Something is scanning the area. 01452_ 0OWCQGPG8UUHNHTPIFZ4V 01475_ K8#>R ,HIF4H4MSPQ%ORIJAE EYVCE:I 01509_ YI-UF0 nonchalantly drops a Grenade Launcher on the ground. 01511_ Acquired Grenade Launcher. 01513_ Lgt. Treads destroyed. 01514_ YI-UF0: "BOOM TO YOU TOO!" 01517_ YI-UF0 mumbles something. 01517_ Assault Rifle destroyed. 01518_ YI-UF0 mumbles something. 01519_ Assault Rifle destroyed. Map ----- +----------------------------------------------------+ | | | ???????????????????????????????????? | | ???????????????????????????????????? | | ???????????????????????????????????? | | ???????????????????????????????????? | | ???????????????????????????????????? | | ???????????????????????????????????? | | ???????????????????????????????????? | | ???????????????????????????????????? | | ???????????????????????????????????? | | ???????????????????????????????????? | | ???????????????????????????????????? | | ???????????????????????? ?? ???????? | | ???????????????????????????????????? | | ?????????????????????? ????????? ##? | | ???????????#??????????????#????? #? | | ???????????????????????#??????? ?? | | ?????????????????????????????## ##? | | ????????####??????????????#?? #?? | | ???????## ##???????????????# #?? | | ??????## ##?????????????? #?? | | ??????# ##??????###?#? ??? | | ??????# #?????## ### #???? | | ?????## #?????# #????? | | ???### #???##### #????? | | #### ###### ## @ #????? | | g #????? | | #???? | | ### ###### #???? | | ##?## ##????## #### ##???? | | #???## ##???#??## ##???####????# | | #????#####????????####????????????? | | #?????????????????????????????????? | | #??????????????????????????????#??? | | ##????????????????????#????????????? | | #???????????????#????????#??????#??? | | ???????????????????????????????????? | | ????????????????????????#??????????? | | ???????????????????????????????????? | | ???????????????????????????????????? | | ???????????????????????????????????? | | ???????????????????????????????????? | | ???????????????????????????????????? | | ???????????????????????????????????? | | ???????????????????????????????????? | | ???????????????????????????????????? | | ???????????????????????????????????? | | ???????????????????????????????????? | | ???????????????????????????????????? | | ???????????????????????????????????? | +----------------------------------------------------+ Best States ------------- Heat Dissipation 25 Energy Generation 10 Energy Capacity 125 Matter Stores 300 Matter Capacity 300 Sight Range 16 Terrain Scan Range 14 Terrain Scan Density 10 Evasion (%) 50 Recoil Reduction 2 Item Schematics ----------------- None Robot Schematics ------------------ None Fabricated ------------ Nothing Repaired ---------- Assault Rifle | 19% | -10/Materials Assault Rifle | 27% | -10/Materials Studied --------- None Alien Tech Used ----------------- None Achievements -------------- None Challenges ------------ None Game ------ Seed BladeGammaSpecial Manual? 0 Play Time 00:11:02 Cumulative 26.8 hours Start 2026.08.16 @ 22:48:03 End 2026.08.16 @ 22:59:15 Sessions 1 Manual Loads 0 Difficulty Rogue Special Mode None Game No. 29 Rogue 26 Adventurer 3 Explorer 0 Win Type - Total 1 Types 1/0/0/0/0/0/0/0/0/0 Lore% 28 Gallery% 23 Achievement% 25 Wizard Run 0 Options --------- Layout 1 ASCII 0 Keyboard 0 Movement Mouse Keybinds 0 Fullscreen 1 Font 32/SmallcapsGlow Map View 50x35 Zoom Use 0% Tactical HUD 1 Map Filters NONE Filters NONE Steam 1 RUN: b6f3a085-c6a5-4593-baa4-c4f0fed0674d